[Event "Titled Tuesday Blitz August 09 Late 2022"]
[White "Paravyan, David"]
[Black "Golubev, Mikhail"]
[WhiteFideId "4194985"]
[BlackFideId "14100983"]
[WhiteElo "2569"]
[BlackElo "2374"]
[Result "1-0"]
[Round "07"]
[TimeControl "180+1"]
[Date "2022.08.09"]
[WhiteClock "0:00:52"]
[BlackClock "0:00:01"]

1. e4 {[%clk 0:03:00]}  c5 {[%clk 0:02:59]} 2. Nf3 {[%clk 0:03:01]}  d6 {[%clk 0:03:00]} 3. d4 {[%clk 0:03:01]}  cxd4 {[%clk 0:03:00]} 4. Nxd4 {[%clk 0:03:02]}  Nf6 {[%clk 0:03:00]} 5. Nc3 {[%clk 0:03:03]}  g6 {[%clk 0:03:01]} 6. Be3 {[%clk 0:03:03]}  Bg7 {[%clk 0:03:01]} 7. f3 {[%clk 0:03:03]}  Nc6 {[%clk 0:03:01]} 8. Qd2 {[%clk 0:03:04]}  O-O {[%clk 0:03:01]} 9. O-O-O {[%clk 0:03:04]}  d5 {[%clk 0:03:01]} 10. Nxc6 {[%clk 0:03:01]}  bxc6 {[%clk 0:03:01]} 11. Bc4 {[%clk 0:03:01]}  e6 {[%clk 0:02:57]} 12. Bb3 {[%clk 0:03:01]}  Bb7 {[%clk 0:02:54]} 13. h4 {[%clk 0:02:59]}  Qe7 {[%clk 0:02:14]} 14. h5 {[%clk 0:02:58]}  Nxh5 {[%clk 0:02:03]} 15. g4 {[%clk 0:02:58]}  Nf6 {[%clk 0:02:04]} 16. Bh6 {[%clk 0:02:55]}  Bh8 {[%clk 0:01:56]} 17. Qh2 {[%clk 0:02:49]}  Rfd8 {[%clk 0:01:35]} 18. e5 {[%clk 0:02:49]}  Nd7 {[%clk 0:01:32]} 19. f4 {[%clk 0:02:49]}  f6 {[%clk 0:01:23]} 20. Ne4 {[%clk 0:02:41]}  fxe5 {[%clk 0:01:16]} 21. Bg5 {[%clk 0:02:39]}  Qg7 {[%clk 0:01:12]} 22. Nd6 {[%clk 0:02:37]}  exf4 {[%clk 0:00:48]} 23. c3 {[%clk 0:02:16]}  Nc5 {[%clk 0:00:48]} 24. Bf6 {[%clk 0:01:51]}  Qc7 {[%clk 0:00:48]} 25. Bxh8 {[%clk 0:01:45]}  Kxh8 {[%clk 0:00:43]} 26. Bc2 {[%clk 0:01:15]}  Rxd6 {[%clk 0:00:28]} 27. Qxf4 {[%clk 0:01:15]}  Rad8 {[%clk 0:00:07]} 28. Bxg6 {[%clk 0:00:58]}  R6d7 {[%clk 0:00:06]} 29. Qf6+ {[%clk 0:00:59]}  Kg8 {[%clk 0:00:06]} 30. Rxh7 {[%clk 0:00:53]}  Rxh7 {[%clk 0:00:05]} 31. Bxh7+ {[%clk 0:00:54]}  Qxh7 {[%clk 0:00:05]} 32. Qxd8+ {[%clk 0:00:55]}  Kg7 {[%clk 0:00:03]} 33. Qe7+ {[%clk 0:00:54]}  Kg6 {[%clk 0:00:02]} 34. Qxc5 {[%clk 0:00:55]}  Qh6+ {[%clk 0:00:02]} 35. Rd2 {[%clk 0:00:55]}  Qf4 {[%clk 0:00:02]} 36. Qf2 {[%clk 0:00:53]}  Qxf2 {[%clk 0:00:01]} 37. Rxf2 {[%clk 0:00:54]}  e5 {[%clk 0:00:02]} 38. Rf5 {[%clk 0:00:54]}  e4 {[%clk 0:00:01]} 39. Kd2 {[%clk 0:00:53]}  Ba6 {[%clk 0:00:01]} 40. Rf8 {[%clk 0:00:53]}  Bb5 {[%clk 0:00:01]} 41. Ke3 {[%clk 0:00:52]} 1-0


[Site "https://www.chess.com"]

[Event "Titled Tuesday Blitz August 09 Late 2022"]
[White "Rasulov, Vugar"]
[Black "Naroditsky, Daniel"]
[WhiteFideId "13402390"]
[BlackFideId "2026961"]
[WhiteElo "2509"]
[BlackElo "2628"]
[Result "0-1"]
[Round "07"]
[TimeControl "180+1"]
[Date "2022.08.09"]
[WhiteClock "0:00:05"]
[BlackClock "0:00:04"]

1. d4 {[%clk 0:03:00]}  Nf6 {[%clk 0:02:59]} 2. Nf3 {[%clk 0:03:01]}  g6 {[%clk 0:02:59]} 3. g3 {[%clk 0:03:02]}  Bg7 {[%clk 0:03:00]} 4. Bg2 {[%clk 0:03:02]}  O-O {[%clk 0:03:01]} 5. O-O {[%clk 0:03:03]}  d5 {[%clk 0:03:01]} 6. c4 {[%clk 0:03:03]}  dxc4 {[%clk 0:03:02]} 7. Na3 {[%clk 0:03:01]}  c3 {[%clk 0:03:02]} 8. bxc3 {[%clk 0:03:02]}  c5 {[%clk 0:03:03]} 9. e3 {[%clk 0:03:02]}  Nc6 {[%clk 0:03:02]} 10. Qe2 {[%clk 0:03:01]}  Bf5 {[%clk 0:02:57]} 11. Bb2 {[%clk 0:03:01]}  Qb6 {[%clk 0:02:54]} 12. Nc4 {[%clk 0:02:48]}  Qa6 {[%clk 0:02:54]} 13. Rfe1 {[%clk 0:02:48]}  Be4 {[%clk 0:02:51]} 14. Nfe5 {[%clk 0:02:43]}  Bxg2 {[%clk 0:02:48]} 15. Kxg2 {[%clk 0:02:44]}  Rac8 {[%clk 0:02:21]} 16. a4 {[%clk 0:02:36]}  Rfd8 {[%clk 0:02:06]} 17. Ba3 {[%clk 0:02:35]}  Nxe5 {[%clk 0:02:03]} 18. Nxe5 {[%clk 0:02:20]}  Qxe2 {[%clk 0:01:58]} 19. Rxe2 {[%clk 0:02:20]}  Nd5 {[%clk 0:01:59]} 20. Rb2 {[%clk 0:01:59]}  Nxc3 {[%clk 0:01:35]} 21. Rxb7 {[%clk 0:01:56]}  cxd4 {[%clk 0:01:35]} 22. exd4 {[%clk 0:01:41]}  h5 {[%clk 0:00:56]} 23. Re1 {[%clk 0:01:35]}  Nd5 {[%clk 0:00:40]} 24. Bxe7 {[%clk 0:01:22]}  Re8 {[%clk 0:00:30]} 25. Bc5 {[%clk 0:01:14]}  Bxe5 {[%clk 0:00:27]} 26. Bxa7 {[%clk 0:01:05]}  Bd6 {[%clk 0:00:16]} 27. Rxe8+ {[%clk 0:01:04]}  Rxe8 {[%clk 0:00:17]} 28. a5 {[%clk 0:00:50]}  Ra8 {[%clk 0:00:12]} 29. Rd7 {[%clk 0:00:43]}  Nb4 {[%clk 0:00:12]} 30. Bb6 {[%clk 0:00:39]}  Bf8 {[%clk 0:00:13]} 31. d5 {[%clk 0:00:40]}  Kg7 {[%clk 0:00:08]} 32. Kf3 {[%clk 0:00:39]}  Na6 {[%clk 0:00:06]} 33. d6 {[%clk 0:00:30]}  Kf6 {[%clk 0:00:05]} 34. Bd4+ {[%clk 0:00:12]}  Ke6 {[%clk 0:00:05]} 35. Rb7 {[%clk 0:00:12]}  Bxd6 {[%clk 0:00:06]} 36. Rb6 {[%clk 0:00:13]}  Kd5 {[%clk 0:00:05]} 37. Be3 {[%clk 0:00:13]}  Nc5 {[%clk 0:00:05]} 38. Rb5 {[%clk 0:00:12]}  Kc6 {[%clk 0:00:06]} 39. Rb6+ {[%clk 0:00:13]}  Kd5 {[%clk 0:00:06]} 40. Rb5 {[%clk 0:00:12]}  Ra6 {[%clk 0:00:06]} 41. h4 {[%clk 0:00:11]}  Kc6 {[%clk 0:00:06]} 42. Rb1 {[%clk 0:00:07]}  Rxa5 {[%clk 0:00:06]} 43. Rc1 {[%clk 0:00:06]}  Ra3 {[%clk 0:00:05]} 44. Kg2 {[%clk 0:00:06]}  Kd5 {[%clk 0:00:05]} 45. Rd1+ {[%clk 0:00:06]}  Ke6 {[%clk 0:00:05]} 46. Re1 {[%clk 0:00:07]}  Nd3 {[%clk 0:00:03]} 47. Rd1 {[%clk 0:00:06]}  Rb3 {[%clk 0:00:02]} 48. Ra1 {[%clk 0:00:06]}  Bc5 {[%clk 0:00:02]} 49. Ra6+ {[%clk 0:00:05]}  Kd5 {[%clk 0:00:03]} 50. Ra5 {[%clk 0:00:05]}  Kc6 {[%clk 0:00:03]} 51. Bxc5 {[%clk 0:00:04]}  Nxc5 {[%clk 0:00:03]} 52. Ra7 {[%clk 0:00:05]}  Rb7 {[%clk 0:00:04]} 53. Ra8 {[%clk 0:00:05]}  Kd5 {[%clk 0:00:04]} 54. Kf3 {[%clk 0:00:05]}  Ke5 {[%clk 0:00:05]} 55. Ra4 {[%clk 0:00:05]}  Nxa4 {[%clk 0:00:04]} 0-1


[Site "https://www.chess.com"]

[Event "Titled Tuesday Blitz August 09 Late 2022"]
[White "Rego, Pedro Filipe"]
[Black "Wan, Joseph"]
[WhiteFideId "1904310"]
[BlackFideId "2069890"]
[WhiteElo "2125"]
[BlackElo "2198"]
[Result "0-1"]
[Round "07"]
[TimeControl "180+1"]
[Date "2022.08.09"]
[WhiteClock "0:00:01"]
[BlackClock "0:00:15"]

1. e4 {[%clk 0:03:00]}  g6 {[%clk 0:02:59]} 2. d4 {[%clk 0:02:59]}  Bg7 {[%clk 0:03:00]} 3. Nc3 {[%clk 0:02:58]}  d6 {[%clk 0:03:00]} 4. Be3 {[%clk 0:02:50]}  a6 {[%clk 0:03:00]} 5. Qd2 {[%clk 0:02:49]}  b5 {[%clk 0:03:00]} 6. a3 {[%clk 0:02:49]}  Nd7 {[%clk 0:02:59]} 7. f3 {[%clk 0:02:41]}  Bb7 {[%clk 0:02:59]} 8. Nge2 {[%clk 0:02:39]}  Rc8 {[%clk 0:02:59]} 9. d5 {[%clk 0:02:25]}  c5 {[%clk 0:02:58]} 10. dxc6 {[%clk 0:02:24]}  Bxc6 {[%clk 0:02:58]} 11. Nd4 {[%clk 0:02:23]}  Bb7 {[%clk 0:02:58]} 12. h4 {[%clk 0:02:18]}  Ngf6 {[%clk 0:02:58]} 13. g4 {[%clk 0:02:13]}  h5 {[%clk 0:02:58]} 14. g5 {[%clk 0:02:08]}  Nh7 {[%clk 0:02:58]} 15. f4 {[%clk 0:02:06]}  Nc5 {[%clk 0:02:57]} 16. Bd3 {[%clk 0:02:04]}  O-O {[%clk 0:02:55]} 17. Rf1 {[%clk 0:02:00]}  Qd7 {[%clk 0:02:34]} 18. f5 {[%clk 0:01:58]}  Be5 {[%clk 0:02:21]} 19. O-O-O {[%clk 0:01:53]}  e6 {[%clk 0:02:17]} 20. Kb1 {[%clk 0:01:32]}  Rfe8 {[%clk 0:02:07]} 21. b4 {[%clk 0:01:25]}  Nxd3 {[%clk 0:02:04]} 22. cxd3 {[%clk 0:01:26]}  exf5 {[%clk 0:02:02]} 23. exf5 {[%clk 0:01:23]}  Nf8 {[%clk 0:01:49]} 24. Ne4 {[%clk 0:01:13]}  Bxe4 {[%clk 0:01:41]} 25. dxe4 {[%clk 0:01:14]}  Rc4 {[%clk 0:01:41]} 26. Rc1 {[%clk 0:01:07]}  Qb7 {[%clk 0:01:37]} 27. Rxc4 {[%clk 0:01:01]}  bxc4 {[%clk 0:01:37]} 28. fxg6 {[%clk 0:00:45]}  Qxe4+ {[%clk 0:01:33]} 29. Ka2 {[%clk 0:00:45]}  Nxg6 {[%clk 0:01:24]} 30. Nf5 {[%clk 0:00:40]}  Rf8 {[%clk 0:01:07]} 31. Nh6+ {[%clk 0:00:28]}  Kg7 {[%clk 0:01:07]} 32. Nf5+ {[%clk 0:00:24]}  Kh7 {[%clk 0:01:06]} 33. Qe2 {[%clk 0:00:19]}  Kg8 {[%clk 0:00:40]} 34. Nh6+ {[%clk 0:00:17]}  Kh8 {[%clk 0:00:36]} 35. Nf5 {[%clk 0:00:16]}  Kg8 {[%clk 0:00:25]} 36. Nh6+ {[%clk 0:00:15]}  Kh7 {[%clk 0:00:25]} 37. Nf5 {[%clk 0:00:15]}  Rh8 {[%clk 0:00:25]} 38. Nh6 {[%clk 0:00:07]}  Nf4 {[%clk 0:00:16]} 39. Rxf4 {[%clk 0:00:03]}  Bxf4 {[%clk 0:00:16]} 40. Qxh5 {[%clk 0:00:01]}  Qc2+ {[%clk 0:00:14]} 41. Ka1 {[%clk 0:00:01]}  Be5+ {[%clk 0:00:15]} 0-1


[Site "https://www.chess.com"]

[Event "Titled Tuesday Blitz August 09 Late 2022"]
[White "Schmakel, Sam"]
[Black "Livaic, Leon"]
[WhiteFideId "2039311"]
[BlackFideId "14531534"]
[WhiteElo "2356"]
[BlackElo "2540"]
[Result "1-0"]
[Round "07"]
[TimeControl "180+1"]
[Date "2022.08.09"]
[WhiteClock "0:00:07"]
[BlackClock "0:00:02"]

1. d4 {[%clk 0:03:00]}  Nf6 {[%clk 0:03:00]} 2. c4 {[%clk 0:02:58]}  e6 {[%clk 0:03:00]} 3. Nf3 {[%clk 0:02:58]}  d5 {[%clk 0:02:59]} 4. Nc3 {[%clk 0:02:59]}  Bb4 {[%clk 0:02:56]} 5. e3 {[%clk 0:02:52]}  O-O {[%clk 0:02:56]} 6. Bd2 {[%clk 0:02:46]}  Nbd7 {[%clk 0:02:55]} 7. Rc1 {[%clk 0:02:46]}  b6 {[%clk 0:02:43]} 8. cxd5 {[%clk 0:02:41]}  exd5 {[%clk 0:02:42]} 9. Bd3 {[%clk 0:02:38]}  Bb7 {[%clk 0:02:41]} 10. Nb5 {[%clk 0:02:31]}  Bxd2+ {[%clk 0:02:39]} 11. Qxd2 {[%clk 0:02:32]}  Ne4 {[%clk 0:02:29]} 12. Qc2 {[%clk 0:02:11]}  c5 {[%clk 0:02:16]} 13. O-O {[%clk 0:02:03]}  a6 {[%clk 0:02:05]} 14. Nc3 {[%clk 0:02:02]}  Qe7 {[%clk 0:02:04]} 15. dxc5 {[%clk 0:01:56]}  bxc5 {[%clk 0:02:04]} 16. Qb3 {[%clk 0:01:39]}  Ndf6 {[%clk 0:01:53]} 17. Qa3 {[%clk 0:01:35]}  Rfc8 {[%clk 0:01:32]} 18. Na4 {[%clk 0:01:33]}  Rc6 {[%clk 0:01:24]} 19. Nd4 {[%clk 0:01:29]}  Rc7 {[%clk 0:01:19]} 20. Nb3 {[%clk 0:00:57]}  Rac8 {[%clk 0:01:07]} 21. Na5 {[%clk 0:00:56]}  c4 {[%clk 0:00:59]} 22. Qxe7 {[%clk 0:00:51]}  Rxe7 {[%clk 0:01:00]} 23. Bxe4 {[%clk 0:00:49]}  Nxe4 {[%clk 0:01:01]} 24. Rfd1 {[%clk 0:00:48]}  Nf6 {[%clk 0:00:46]} 25. Nb6 {[%clk 0:00:42]}  Rc5 {[%clk 0:00:35]} 26. Nbxc4 {[%clk 0:00:28]}  g6 {[%clk 0:00:22]} 27. b4 {[%clk 0:00:20]}  Rxc4 {[%clk 0:00:21]} 28. Nxc4 {[%clk 0:00:20]}  dxc4 {[%clk 0:00:21]} 29. Rxc4 {[%clk 0:00:20]}  Bd5 {[%clk 0:00:19]} 30. Rc2 {[%clk 0:00:21]}  Rb7 {[%clk 0:00:14]} 31. a3 {[%clk 0:00:18]}  Kg7 {[%clk 0:00:14]} 32. Rc5 {[%clk 0:00:16]}  Be6 {[%clk 0:00:11]} 33. f3 {[%clk 0:00:16]}  Nd7 {[%clk 0:00:11]} 34. Rc6 {[%clk 0:00:13]}  Ra7 {[%clk 0:00:08]} 35. Rdd6 {[%clk 0:00:11]}  a5 {[%clk 0:00:02]} 36. bxa5 {[%clk 0:00:11]}  Rxa5 {[%clk 0:00:01]} 37. Rc3 {[%clk 0:00:10]}  Ra4 {[%clk 0:00:02]} 38. e4 {[%clk 0:00:09]}  Ne5 {[%clk 0:00:01]} 39. Rc7 {[%clk 0:00:07]}  Nc4 {[%clk 0:00:01]} 40. Rxe6 {[%clk 0:00:07]}  Ne3 {[%clk 0:00:01]} 41. Ree7 {[%clk 0:00:07]}  Rxa3 {[%clk 0:00:01]} 42. Rxf7+ {[%clk 0:00:07]}  Kh6 {[%clk 0:00:02]} 43. h4 {[%clk 0:00:07]}  g5 {[%clk 0:00:02]} 44. Rc6+ {[%clk 0:00:06]}  Kh5 {[%clk 0:00:02]} 45. Rxh7# {[%clk 0:00:07]} 1-0


[Site "https://www.chess.com"]

[Event "Titled Tuesday Blitz August 09 Late 2022"]
[White "Terry, Renato"]
[Black "Rustemov, Alexander"]
[WhiteFideId "3803457"]
[BlackFideId "4119002"]
[WhiteElo "2577"]
[BlackElo "2789"]
[Result "1-0"]
[Round "07"]
[TimeControl "180+1"]
[Date "2022.08.09"]
[WhiteClock "0:00:26"]
[BlackClock "0:00:34"]

1. e4 {[%clk 0:03:00]}  e6 {[%clk 0:02:59]} 2. d4 {[%clk 0:03:00]}  d5 {[%clk 0:03:00]} 3. exd5 {[%clk 0:03:01]}  exd5 {[%clk 0:03:00]} 4. Nf3 {[%clk 0:03:02]}  Bf5 {[%clk 0:02:59]} 5. Bd3 {[%clk 0:03:00]}  Bxd3 {[%clk 0:02:58]} 6. Qxd3 {[%clk 0:03:01]}  Nc6 {[%clk 0:02:53]} 7. Nc3 {[%clk 0:02:49]}  Bb4 {[%clk 0:02:49]} 8. O-O {[%clk 0:02:42]}  Bxc3 {[%clk 0:02:49]} 9. bxc3 {[%clk 0:02:25]}  Nge7 {[%clk 0:02:49]} 10. Ba3 {[%clk 0:02:26]}  O-O {[%clk 0:02:48]} 11. Ng5 {[%clk 0:02:25]}  g6 {[%clk 0:02:44]} 12. Qh3 {[%clk 0:02:18]}  h5 {[%clk 0:02:43]} 13. Rfe1 {[%clk 0:02:18]}  Re8 {[%clk 0:02:41]} 14. g4 {[%clk 0:02:07]}  Qd7 {[%clk 0:02:38]} 15. f3 {[%clk 0:02:07]}  Kg7 {[%clk 0:02:14]} 16. Qg3 {[%clk 0:01:53]}  hxg4 {[%clk 0:02:10]} 17. fxg4 {[%clk 0:01:53]}  Ng8 {[%clk 0:02:06]} 18. Qh4 {[%clk 0:01:25]}  Nh6 {[%clk 0:02:02]} 19. h3 {[%clk 0:01:24]}  Rxe1+ {[%clk 0:01:55]} 20. Rxe1 {[%clk 0:01:24]}  Re8 {[%clk 0:01:55]} 21. Rf1 {[%clk 0:01:25]}  f6 {[%clk 0:01:40]} 22. Rxf6 {[%clk 0:01:11]}  Re1+ {[%clk 0:01:27]} 23. Qxe1 {[%clk 0:01:00]}  Kxf6 {[%clk 0:01:26]} 24. Qf2+ {[%clk 0:00:58]}  Nf5 {[%clk 0:01:22]} 25. Bc1 {[%clk 0:00:57]}  Ne7 {[%clk 0:01:00]} 26. Qf4 {[%clk 0:00:53]}  Kg7 {[%clk 0:00:46]} 27. Qe5+ {[%clk 0:00:50]}  Kg8 {[%clk 0:00:45]} 28. gxf5 {[%clk 0:00:47]}  Nxf5 {[%clk 0:00:45]} 29. Bf4 {[%clk 0:00:34]}  Nd6 {[%clk 0:00:40]} 30. Qxd5+ {[%clk 0:00:34]}  Kf8 {[%clk 0:00:39]} 31. Qe6 {[%clk 0:00:27]}  Qb5 {[%clk 0:00:35]} 32. Bxd6+ {[%clk 0:00:26]}  cxd6 {[%clk 0:00:34]} 33. Qf7# {[%clk 0:00:26]} 1-0


[Site "https://www.chess.com"]

[Event "Titled Tuesday Blitz August 09 Late 2022"]
[White "Zhigalko, Sergei"]
[Black "Pinheiro, Iung Alicio de O."]
[WhiteFideId "13502956"]
[BlackFideId "2104350"]
[WhiteElo "2662"]
[BlackElo "2283"]
[Result "1-0"]
[Round "07"]
[TimeControl "180+1"]
[Date "2022.08.09"]
[WhiteClock "0:00:10"]
[BlackClock "0:00:14"]

1. e4 {[%clk 0:03:00]}  c5 {[%clk 0:02:59]} 2. Nf3 {[%clk 0:02:59]}  Nc6 {[%clk 0:02:59]} 3. c3 {[%clk 0:03:00]}  Nf6 {[%clk 0:02:58]} 4. e5 {[%clk 0:03:00]}  Nd5 {[%clk 0:02:59]} 5. Bc4 {[%clk 0:03:00]}  Nb6 {[%clk 0:02:58]} 6. Bb3 {[%clk 0:03:00]}  c4 {[%clk 0:02:59]} 7. Bc2 {[%clk 0:03:01]}  Qc7 {[%clk 0:03:00]} 8. Qe2 {[%clk 0:03:01]}  g5 {[%clk 0:02:59]} 9. h3 {[%clk 0:03:01]}  Bg7 {[%clk 0:02:58]} 10. O-O {[%clk 0:03:01]}  Nxe5 {[%clk 0:02:58]} 11. Nxg5 {[%clk 0:03:01]}  Qc6 {[%clk 0:02:54]} 12. Re1 {[%clk 0:02:58]}  d5 {[%clk 0:02:48]} 13. d4 {[%clk 0:02:41]}  cxd3 {[%clk 0:02:45]} 14. Bxd3 {[%clk 0:02:41]}  Qf6 {[%clk 0:02:26]} 15. Nxh7 {[%clk 0:02:16]}  Rxh7 {[%clk 0:02:09]} 16. Bxh7 {[%clk 0:02:15]}  Bd7 {[%clk 0:01:46]} 17. Be3 {[%clk 0:01:35]}  Nc6 {[%clk 0:01:18]} 18. Nd2 {[%clk 0:01:15]}  O-O-O {[%clk 0:01:15]} 19. Nf3 {[%clk 0:00:59]}  Nc4 {[%clk 0:00:54]} 20. Bg5 {[%clk 0:00:53]}  Qd6 {[%clk 0:00:53]} 21. Bxe7 {[%clk 0:00:37]}  Nxe7 {[%clk 0:00:52]} 22. Qxe7 {[%clk 0:00:38]}  Qxe7 {[%clk 0:00:49]} 23. Rxe7 {[%clk 0:00:39]}  Be6 {[%clk 0:00:48]} 24. Ng5 {[%clk 0:00:30]}  Bf6 {[%clk 0:00:44]} 25. Nxe6 {[%clk 0:00:29]}  fxe6 {[%clk 0:00:26]} 26. Rxe6 {[%clk 0:00:29]}  Rf8 {[%clk 0:00:27]} 27. Re2 {[%clk 0:00:23]}  Kc7 {[%clk 0:00:23]} 28. Rd1 {[%clk 0:00:22]}  Kc6 {[%clk 0:00:20]} 29. g3 {[%clk 0:00:19]}  Nb6 {[%clk 0:00:20]} 30. Kg2 {[%clk 0:00:18]}  a5 {[%clk 0:00:19]} 31. h4 {[%clk 0:00:17]}  a4 {[%clk 0:00:19]} 32. a3 {[%clk 0:00:18]}  Nc4 {[%clk 0:00:18]} 33. Bg6 {[%clk 0:00:15]}  Bd8 {[%clk 0:00:16]} 34. Be8+ {[%clk 0:00:13]}  Kc5 {[%clk 0:00:15]} 35. Bxa4 {[%clk 0:00:14]}  b5 {[%clk 0:00:15]} 36. Bb3 {[%clk 0:00:13]}  Nb6 {[%clk 0:00:15]} 37. Re5 {[%clk 0:00:11]}  Bc7 {[%clk 0:00:15]} 38. Rg5 {[%clk 0:00:10]}  Re8 {[%clk 0:00:14]} 39. Bxd5 {[%clk 0:00:10]} 1-0


[Site "https://www.chess.com"]

[Event "Titled Tuesday Blitz August 09 Late 2022"]
[White "Adewumi, Tanitoluwa"]
[Black "Llorente Zaro, Alfonso"]
[WhiteFideId "30966396"]
[BlackFideId "2254131"]
[WhiteElo "2518"]
[BlackElo "2485"]
[Result "1-0"]
[Round "08"]
[TimeControl "180+1"]
[Date "2022.08.09"]
[WhiteClock "0:00:02"]
[BlackClock "0:00:05"]

1. e4 {[%clk 0:02:29]}  d5 {[%clk 0:02:18]} 2. exd5 {[%clk 0:02:28]}  Qxd5 {[%clk 0:02:18]} 3. d4 {[%clk 0:02:28]}  Qa5+ {[%clk 0:02:19]} 4. Nc3 {[%clk 0:02:26]}  Nf6 {[%clk 0:02:19]} 5. Nf3 {[%clk 0:02:26]}  Ne4 {[%clk 0:02:19]} 6. Bd2 {[%clk 0:01:09]}  Nxd2 {[%clk 0:02:15]} 7. Qxd2 {[%clk 0:01:10]}  g6 {[%clk 0:02:13]} 8. Bc4 {[%clk 0:01:07]}  Bg7 {[%clk 0:02:13]} 9. O-O {[%clk 0:00:52]}  O-O {[%clk 0:02:10]} 10. Nd5 {[%clk 0:00:43]}  Qxd2 {[%clk 0:02:07]} 11. Nxd2 {[%clk 0:00:32]}  Nc6 {[%clk 0:02:05]} 12. Nxc7 {[%clk 0:00:24]}  Rb8 {[%clk 0:02:02]} 13. c3 {[%clk 0:00:22]}  e6 {[%clk 0:01:47]} 14. d5 {[%clk 0:00:11]}  exd5 {[%clk 0:01:35]} 15. Nxd5 {[%clk 0:00:10]}  Be6 {[%clk 0:01:35]} 16. Ne4 {[%clk 0:00:10]}  Rfd8 {[%clk 0:01:28]} 17. Rfd1 {[%clk 0:00:09]}  Kf8 {[%clk 0:01:19]} 18. Ne3 {[%clk 0:00:08]}  Bxc4 {[%clk 0:00:56]} 19. Nxc4 {[%clk 0:00:09]}  Ke7 {[%clk 0:00:42]} 20. Kf1 {[%clk 0:00:07]}  b5 {[%clk 0:00:34]} 21. Ne3 {[%clk 0:00:05]}  Na5 {[%clk 0:00:31]} 22. Nd5+ {[%clk 0:00:05]}  Kf8 {[%clk 0:00:21]} 23. Ne3 {[%clk 0:00:05]}  Re8 {[%clk 0:00:19]} 24. Nd6 {[%clk 0:00:04]}  Red8 {[%clk 0:00:18]} 25. Ne4 {[%clk 0:00:03]}  Re8 {[%clk 0:00:17]} 26. Nc5 {[%clk 0:00:04]}  Rbc8 {[%clk 0:00:15]} 27. Nd3 {[%clk 0:00:01]}  f5 {[%clk 0:00:10]} 28. Rac1 {[%clk 0:00:01]}  Nc4 {[%clk 0:00:07]} 29. Nc2 {[%clk 0:00:02]}  Red8 {[%clk 0:00:06]} 30. b3 {[%clk 0:00:02]}  Nb6 {[%clk 0:00:06]} 31. Ncb4 {[%clk 0:00:01]}  Rxc3 {[%clk 0:00:05]} 32. Rc2 {[%clk 0:00:02]} 1-0


[Site "https://www.chess.com"]

[Event "Titled Tuesday Blitz August 09 Late 2022"]
[White "Al-Tarboush, Ward"]
[Black "Fishbein, Alexander"]
[WhiteFideId "7601450"]
[BlackFideId "2000377"]
[WhiteElo "2234"]
[BlackElo "2410"]
[Result "0-1"]
[Round "08"]
[TimeControl "180+1"]
[Date "2022.08.09"]
[WhiteClock "0:00:07"]
[BlackClock "0:00:16"]

1. e4 {[%clk 0:03:00]}  c5 {[%clk 0:02:58]} 2. Nf3 {[%clk 0:03:00]}  d6 {[%clk 0:02:57]} 3. d4 {[%clk 0:03:01]}  cxd4 {[%clk 0:02:58]} 4. Nxd4 {[%clk 0:03:02]}  Nf6 {[%clk 0:02:58]} 5. Nc3 {[%clk 0:03:02]}  Nc6 {[%clk 0:02:57]} 6. Bg5 {[%clk 0:03:02]}  e6 {[%clk 0:02:54]} 7. Qd2 {[%clk 0:03:02]}  Be7 {[%clk 0:02:54]} 8. Bxf6 {[%clk 0:02:54]}  Bxf6 {[%clk 0:02:52]} 9. Ndb5 {[%clk 0:02:54]}  O-O {[%clk 0:02:39]} 10. Nxd6 {[%clk 0:02:54]}  Qa5 {[%clk 0:02:36]} 11. Nc4 {[%clk 0:02:53]}  Qc5 {[%clk 0:02:29]} 12. Bd3 {[%clk 0:02:46]}  b5 {[%clk 0:02:24]} 13. Ne3 {[%clk 0:02:39]}  b4 {[%clk 0:02:22]} 14. Ncd1 {[%clk 0:02:39]}  Bb7 {[%clk 0:02:14]} 15. O-O {[%clk 0:02:38]}  Rfd8 {[%clk 0:02:13]} 16. Ng4 {[%clk 0:02:19]}  Bg5 {[%clk 0:02:07]} 17. Nde3 {[%clk 0:01:53]}  h5 {[%clk 0:01:52]} 18. f4 {[%clk 0:01:53]}  hxg4 {[%clk 0:01:42]} 19. fxg5 {[%clk 0:01:53]}  Qxg5 {[%clk 0:01:39]} 20. Nc4 {[%clk 0:01:52]}  Qxd2 {[%clk 0:01:32]} 21. Nxd2 {[%clk 0:01:53]}  Ne5 {[%clk 0:01:32]} 22. Nb3 {[%clk 0:01:49]}  Rac8 {[%clk 0:01:26]} 23. Rad1 {[%clk 0:01:45]}  Nxd3 {[%clk 0:01:16]} 24. cxd3 {[%clk 0:01:45]}  Rc2 {[%clk 0:01:12]} 25. Rf2 {[%clk 0:01:40]}  Rxf2 {[%clk 0:01:11]} 26. Kxf2 {[%clk 0:01:41]}  Bxe4 {[%clk 0:01:11]} 27. d4 {[%clk 0:01:37]}  Bd5 {[%clk 0:01:10]} 28. Nd2 {[%clk 0:01:02]}  Rc8 {[%clk 0:01:07]} 29. a3 {[%clk 0:00:48]}  b3 {[%clk 0:00:59]} 30. Nf1 {[%clk 0:00:48]}  Rc2+ {[%clk 0:00:50]} 31. Rd2 {[%clk 0:00:48]}  g5 {[%clk 0:00:42]} 32. Ke1 {[%clk 0:00:29]}  Bxg2 {[%clk 0:00:35]} 33. Ne3 {[%clk 0:00:29]}  Rc1+ {[%clk 0:00:27]} 34. Kf2 {[%clk 0:00:26]}  Bd5 {[%clk 0:00:26]} 35. Rd3 {[%clk 0:00:23]}  f5 {[%clk 0:00:23]} 36. Nxd5 {[%clk 0:00:22]}  exd5 {[%clk 0:00:23]} 37. Rxb3 {[%clk 0:00:22]}  Rc2+ {[%clk 0:00:21]} 38. Kg1 {[%clk 0:00:22]}  Kg7 {[%clk 0:00:20]} 39. a4 {[%clk 0:00:17]}  Kf6 {[%clk 0:00:19]} 40. a5 {[%clk 0:00:16]}  f4 {[%clk 0:00:19]} 41. a6 {[%clk 0:00:13]}  Kf5 {[%clk 0:00:19]} 42. Rb7 {[%clk 0:00:12]}  Ke4 {[%clk 0:00:19]} 43. Rxa7 {[%clk 0:00:10]}  Kf3 {[%clk 0:00:17]} 44. h4 {[%clk 0:00:07]}  Rc1+ {[%clk 0:00:16]} 0-1


[Site "https://www.chess.com"]